bitfinex/quotes_SOLUSD_20230113
["timestamp","ask_amount","ask_price","bid_price","bid_amount"]
[1673637374679,17.0,16.83,16.82,12.15]
[1673637376474,44.57,16.83,16.82,12.15]
[1673637376673,17.0,16.831,16.82,12.15]
[1673637376883,44.56,16.832,16.82,42.1191928]
[1673637377094,44.56,16.833,16.82,42.1191928]
[1673637379211,118.0119,16.834,16.82,42.1191928]
[1673637379394,61.56,16.833,16.82,42.1191928]
[1673637379941,44.56,16.833,16.821,17.0]
[1673637380262,44.56,16.833,16.821,46.9691928]
[1673637381101,118.0119,16.834,16.821,91.5591928]
[1673637381302,118.0119,16.834,16.821,46.9691928]
[1673637384558,44.56,16.833,16.821,46.9691928]
[1673637385726,20.0,16.832,16.82,60.55]
[1673637385938,17.0,16.831,16.82,60.55]
[1673637387088,61.57,16.831,16.82,12.08]
[1673637388025,17.0,16.831,16.82,12.08]
[1673637392126,17.0,16.831,16.812,161.0145]
[1673637392339,17.0,16.831,16.81,60.29]
[1673637392340,255.35,16.83,16.81,11.97]
[1673637392540,215.7,16.829,16.81,11.97]
[1673637392754,20.0,16.827,16.81,11.97]
[1673637392964,17.0,16.826,16.81,11.97]
[1673637393303,20.0,16.825,16.81,11.97]
[1673637393606,20.0,16.825,16.809,29.9691928]
[1673637393607,17.0,16.824,16.809,29.9691928]
[1673637393790,61.58,16.824,16.809,29.9691928]
[1673637394003,20.0,16.823,16.809,29.9691928]
[1673637394216,17.0,16.822,16.809,29.9691928]
[1673637394438,61.59,16.822,16.809,29.9691928]
[1673637394634,20.0,16.821,16.809,29.9691928]
[1673637394842,17.0,16.82,16.809,29.9691928]
[1673637395167,61.59,16.82,16.809,29.9691928]
[1673637396225,20.0,16.819,16.809,29.9691928]
[1673637396989,44.6,16.818,16.809,29.9691928]
[1673637398984,64.6,16.819,16.809,29.9691928]
[1673637399293,64.6,16.819,16.804,44.64]
[1673637399508,64.6,16.819,16.806,29.9691928]
[1673637399811,64.6,16.819,16.807,37.0]
[1673637400221,64.6,16.819,16.808,29.9691928]
[1673637400768,44.6,16.819,16.808,29.9691928]
[1673637405488,17.0,16.82,16.808,29.9691928]
[1673637405489,61.59,16.82,16.808,29.9691928]
[1673637407396,44.59,16.82,16.81,11.96]
[1673637407576,115.5659,16.821,16.81,11.96]
[1673637408120,44.59,16.82,16.81,11.96]
[1673637408306,115.5659,16.821,16.81,11.96]
[1673637410206,61.59,16.82,16.81,11.96]
[1673637412213,20.0,16.819,16.805,44.63]
[1673637412427,20.0,16.817,16.805,29.9691928]
[1673637412615,17.0,16.816,16.805,29.9691928]
[1673637414402,17.0,16.816,16.803,108.1442]
[1673637414607,17.0,16.816,16.803,138.1133928]
[1673637414815,130.6339,16.818,16.804,17.0]
[1673637415029,64.6,16.817,16.804,17.0]
[1673637415240,64.6,16.817,16.804,29.9691928]
[1673637415475,37.0,16.816,16.804,29.9691928]
[1673637417343,37.0,16.816,16.803,108.1442]
[1673637417554,37.0,16.816,16.803,138.1133928]
[1673637417765,17.0,16.816,16.803,138.1133928]
[1673637418834,17.0,16.816,16.804,44.64]
[1673637419045,17.0,16.816,16.803,138.1133928]
[1673637419991,17.0,16.816,16.804,44.64]
[1673637422395,20.0,16.817,16.805,46.9691928]
[1673637422604,44.58,16.824,16.81,12.02]
[1673637422825,154.742,16.824,16.81,12.02]
[1673637423037,110.162,16.824,16.811,44.62]
[1673637423766,110.162,16.824,16.81,41.9891928]
[1673637425758,17.0,16.82,16.81,41.9891928]
[1673637425968,17.0,16.82,16.81,12.02]
[1673637426699,44.59,16.823,16.81,12.02]
[1673637428608,44.59,16.823,16.811,29.9691928]
[1673637428806,20.0,16.822,16.81,12.02]
[1673637429229,44.59,16.821,16.81,12.02]
[1673637429855,17.0,16.82,16.81,12.02]
[1673637430716,17.0,16.82,16.803,152.7842]
[1673637430717,64.6,16.819,16.803,108.1442]
[1673637430907,37.0,16.818,16.803,108.1442]
[1673637431117,20.0,16.817,16.803,108.1442]
[1673637431450,17.0,16.816,16.803,108.1442]
[1673637431662,20.0,16.815,16.8,11.97]
[1673637431883,17.0,16.814,16.8,11.97]
[1673637432282,44.61,16.813,16.8,11.97]
[1673637432493,17.0,16.812,16.8,11.97]
[1673637432721,133.3751,16.812,16.8,11.97]
[1673637433036,44.62,16.811,16.8,11.97]
[1673637433243,17.0,16.81,16.8,11.97]
[1673637434071,44.62,16.809,16.792,44.67]
[1673637434282,37.0,16.808,16.792,44.67]
[1673637434508,37.0,16.808,16.792,74.6391928]
[1673637434711,37.0,16.808,16.793,29.9691928]
[1673637435037,111.941,16.807,16.793,29.9691928]
[1673637435248,17.0,16.806,16.794,44.66]
[1673637436696,17.0,16.806,16.794,74.6291928]
[1673637437011,17.0,16.806,16.794,29.9691928]
[1673637437443,17.0,16.806,16.791,44.67]
[1673637437664,37.0,16.806,16.792,46.9691928]
[1673637438073,37.0,16.806,16.793,74.6391928]
[1673637438488,37.0,16.806,16.794,29.9691928]
[1673637439335,37.0,16.806,16.791,44.67]
[1673637439655,37.0,16.806,16.792,29.9691928]
[1673637440182,37.0,16.806,16.793,44.67]
[1673637440710,20.0,16.805,16.793,44.67]
[1673637440899,20.0,16.805,16.793,29.9691928]
[1673637440900,17.0,16.804,16.793,29.9691928]
[1673637441548,17.0,16.804,16.791,44.67]
[1673637441762,17.0,16.804,16.79,12.12]
[1673637441763,108.482,16.803,16.79,42.0891928]
[1673637442074,17.0,16.802,16.79,42.0891928]
[1673637442473,108.482,16.803,16.791,61.67]
[1673637443227,108.482,16.803,16.792,29.9691928]
[1673637443752,108.482,16.803,16.793,44.67]
[1673637445313,108.482,16.803,16.792,44.67]
[1673637445957,17.0,16.802,16.792,44.67]
[1673637446170,37.0,16.802,16.791,74.6391928]
[1673637447421,37.0,16.802,16.791,44.67]
[1673637449210,37.0,16.802,16.79,12.12]
[1673637451634,20.0,16.801,16.79,12.12]
[1673637457524,17.0,16.8,16.79,12.12]
[1673637461110,37.0,16.801,16.79,12.12]
[1673637462041,20.0,16.8,16.79,12.12]
[1673637462251,17.0,16.799,16.782,44.7]
[1673637462576,20.0,16.798,16.783,20.0]
[1673637462777,17.0,16.797,16.783,20.0]
[1673637462992,17.0,16.797,16.784,44.69]
[1673637463219,17.0,16.797,16.785,20.0]
[1673637463527,20.0,16.796,16.785,20.0]
[1673637463713,17.0,16.795,16.783,20.0]
[1673637464134,17.0,16.795,16.784,44.69]
[1673637464361,20.0,16.794,16.781,392.3]
[1673637464581,64.66,16.794,16.776,108.3013]
[1673637464784,17.0,16.793,16.776,108.3013]
[1673637465309,20.0,16.791,16.776,108.3013]
[1673637465518,17.0,16.79,16.776,108.3013]
[1673637465731,61.67,16.79,16.777,20.0]
[1673637465945,44.67,16.79,16.78,11.96]
[1673637466138,44.67,16.791,16.78,11.96]
[1673637466347,44.67,16.791,16.781,17.0]
[1673637466556,116.4111,16.792,16.781,17.0]
[1673637467403,116.4111,16.792,16.781,37.0]
[1673637467818,44.66,16.797,16.781,37.0]
[1673637468261,157.8828,16.799,16.783,20.0]
[1673637468444,44.66,16.796,16.784,17.0]
[1673637468653,61.65,16.798,16.784,17.0]
[1673637468862,20.0,16.797,16.784,17.0]
[1673637470654,20.0,16.797,16.784,61.69]
[1673637471287,44.65,16.798,16.784,61.69]
[1673637471497,44.65,16.801,16.79,12.08]
[1673637471703,268.7012,16.803,16.79,12.08]
[1673637471915,224.0612,16.803,16.79,12.08]
[1673637472342,268.7012,16.803,16.79,12.08]
[1673637472546,224.0612,16.803,16.79,12.08]
[1673637472870,17.0,16.802,16.79,12.08]
[1673637473183,224.0612,16.803,16.79,12.08]
[1673637473394,224.0612,16.803,16.791,17.0]
[1673637473590,224.0612,16.803,16.791,61.67]
[1673637473796,224.0612,16.803,16.791,44.67]
[1673637474029,224.0612,16.803,16.79,12.08]
[1673637474476,17.0,16.802,16.79,12.08]
[1673637475840,20.0,16.8,16.79,12.08]
[1673637476051,17.0,16.799,16.79,12.08]
[1673637476362,61.65,16.799,16.79,12.08]
[1673637477207,17.0,16.799,16.79,12.08]
[1673637477401,17.0,16.8,16.79,12.08]
[1673637478242,44.65,16.799,16.79,12.08]
[1673637478453,224.0612,16.803,16.79,12.08]
[1673637478766,224.0612,16.803,16.791,17.0]
[1673637479187,268.7012,16.803,16.791,17.0]
[1673637479396,224.0612,16.803,16.791,17.0]
[1673637480028,224.0612,16.803,16.79,12.08]
[1673637480235,17.0,16.802,16.79,12.08]
[1673637480677,17.0,16.802,16.79,16.11]
[1673637481078,37.0,16.802,16.79,16.11]
[1673637481289,81.64,16.802,16.79,16.11]
[1673637482258,61.64,16.802,16.79,16.11]
[1673637484137,20.0,16.801,16.79,16.11]
[1673637484354,37.0,16.8,16.782,44.7]
[1673637484566,81.65,16.8,16.78,125.42]
[1673637484778,20.0,16.799,16.78,125.42]
[1673637484987,37.0,16.798,16.78,125.42]
[1673637485176,81.65,16.798,16.78,125.42]
[1673637485388,81.65,16.798,16.781,17.0]
[1673637486776,20.0,16.797,16.781,17.0]
[1673637486988,17.0,16.796,16.78,80.72]
[1673637487198,17.0,16.796,16.78,16.19]
[1673637487199,20.0,16.795,16.78,16.19]
[1673637487509,134.0235,16.794,16.78,16.19]
[1673637487820,178.6835,16.794,16.78,16.19]
[1673637489172,20.0,16.793,16.78,16.19]
[1673637489396,17.0,16.792,16.78,16.19]
[1673637489606,61.67,16.792,16.78,16.19]
[1673637490452,61.67,16.792,16.776,119.7702]
[1673637490650,61.67,16.792,16.777,20.0]
[1673637490651,61.17,16.792,16.777,20.0]
[1673637490860,20.0,16.79,16.773,44.72]
[1673637491078,132.8879,16.789,16.771,44.73]
[1673637491276,177.5679,16.789,16.771,44.73]
[1673637491911,177.5679,16.789,16.77,80.51]
[1673637491912,20.0,16.788,16.77,80.51]
[1673637492223,20.0,16.787,16.77,80.51]
[1673637492431,64.68,16.787,16.77,80.51]
[1673637492642,20.0,16.786,16.77,80.51]
[1673637492856,17.0,16.785,16.77,80.51]
[1673637493067,173.194,16.785,16.77,80.51]
[1673637493477,173.194,16.785,16.77,16.09]
[1673637494733,20.0,16.784,16.77,16.09]
[1673637494953,17.0,16.783,16.77,16.09]
[1673637495166,61.69,16.783,16.77,16.09]
[1673637496738,44.69,16.783,16.771,17.0]
[1673637496952,111.504,16.785,16.771,17.0]
[1673637497582,44.69,16.784,16.771,17.0]
[1673637499899,44.69,16.784,16.772,20.0]
[1673637500117,112.8879,16.789,16.773,37.0]
[1673637500307,20.0,16.799,16.78,16.11]
[1673637500520,109.5542,16.796,16.781,17.0]
[1673637500745,44.67,16.793,16.781,17.0]
[1673637500953,44.67,16.793,16.782,20.0]
[1673637501176,109.5542,16.796,16.783,17.0]
[1673637501797,109.5542,16.796,16.784,20.0]
[1673637502014,44.65,16.801,16.785,17.0]
[1673637502217,44.65,16.801,16.786,20.0]
[1673637502434,117.578,16.802,16.786,20.0]
[1673637502435,162.218,16.802,16.79,15.98]
[1673637502653,44.65,16.8,16.79,15.98]
[1673637502852,44.65,16.801,16.79,15.98]
[1673637503262,17.0,16.8,16.79,15.98]
[1673637504327,44.65,16.801,16.79,15.98]
[1673637504538,44.65,16.801,16.787,20.0]
[1673637504862,44.65,16.801,16.788,20.0]
[1673637505695,44.65,16.801,16.789,17.0]
[1673637506421,117.578,16.802,16.79,15.98]
[1673637506627,44.64,16.802,16.79,15.98]
[1673637506872,44.63,16.805,16.792,20.0]
[1673637507051,44.63,16.807,16.793,17.0]
[1673637507260,119.1306,16.808,16.793,17.0]
[1673637507261,44.64,16.804,16.793,17.0]
[1673637507472,44.63,16.806,16.79,15.98]
[1673637507802,44.64,16.802,16.79,15.98]
[1673637507997,61.64,16.802,16.79,15.98]
[1673637510213,44.64,16.802,16.79,15.98]
[1673637510427,44.64,16.802,16.791,17.0]
[1673637510632,44.63,16.807,16.791,17.0]
[1673637510849,44.63,16.807,16.792,20.0]
[1673637511052,44.63,16.807,16.793,17.0]
[1673637511696,44.63,16.807,16.794,44.66]
[1673637511936,44.63,16.807,16.793,61.67]
[1673637512159,44.63,16.807,16.791,44.67]
[1673637512341,44.63,16.807,16.792,17.0]
[1673637512761,17.0,16.806,16.792,17.0]
[1673637513305,44.63,16.805,16.792,17.0]
[1673637513517,44.63,16.805,16.792,37.0]
[1673637513935,44.63,16.805,16.793,20.0]
[1673637514251,119.1306,16.808,16.794,17.0]
[1673637514459,64.63,16.807,16.794,17.0]
[1673637518879,64.63,16.807,16.793,17.0]
[1673637520173,63.63,16.807,16.793,17.0]
[1673637520630,17.0,16.806,16.791,44.67]
[1673637520892,37.0,16.806,16.79,80.61]
[1673637521119,44.63,16.805,16.79,80.61]
[1673637522470,44.63,16.805,16.791,20.0]
[1673637522887,44.63,16.805,16.792,17.0]
[1673637523722,44.63,16.806,16.792,17.0]
[1673637523931,44.63,16.806,16.79,100.61]
[1673637524121,17.0,16.805,16.79,100.61]
[1673637524340,17.0,16.805,16.79,80.61]
[1673637524553,44.64,16.804,16.79,80.61]
[1673637524766,37.0,16.803,16.785,436.99]
[1673637524985,145.9031,16.803,16.786,20.0]
[1673637525191,44.64,16.802,16.786,20.0]
[1673637525389,17.0,16.801,16.786,20.0]
[1673637525604,17.0,16.801,16.786,40.0]
[1673637525819,44.65,16.8,16.786,40.0]
[1673637526042,17.0,16.799,16.786,40.0]
[1673637526779,61.65,16.799,16.786,20.0]
[1673637526975,17.0,16.799,16.786,20.0]
[1673637528126,44.64,16.802,16.786,20.0]
[1673637528357,44.64,16.802,16.787,17.0]
[1673637528676,17.0,16.801,16.788,20.0]
[1673637529083,44.65,16.8,16.79,16.11]
[1673637529369,108.9031,16.803,16.79,16.11]
[1673637529532,44.64,16.802,16.79,16.11]
[1673637530041,108.9031,16.803,16.791,17.0]
[1673637530471,44.63,16.806,16.792,20.0]
[1673637530663,63.63,16.807,16.793,17.0]
[1673637532139,63.63,16.807,16.794,20.0]
[1673637532345,44.63,16.807,16.794,20.0]
[1673637532555,44.63,16.807,16.8,16.11]
[1673637532775,119.1306,16.808,16.8,16.11]
[1673637534136,44.62,16.811,16.8,16.11]
[1673637534968,44.61,16.816,16.8,16.11]
[1673637535392,44.61,16.816,16.801,17.0]
[1673637535606,44.61,16.816,16.802,20.0]
[1673637535827,44.6,16.82,16.803,20.0]
[1673637536023,44.6,16.82,16.804,20.0]
[1673637536234,44.6,16.82,16.805,20.0]
[1673637536658,44.6,16.82,16.806,17.0]
[1673637536875,44.6,16.82,16.807,20.0]
[1673637537817,17.0,16.819,16.805,20.0]
[1673637538249,44.6,16.818,16.805,20.0]
[1673637538452,17.0,16.817,16.805,20.0]
[1673637540666,44.6,16.82,16.806,17.0]
[1673637541008,44.6,16.82,16.81,16.11]
[1673637541371,44.58,16.825,16.81,16.11]
[1673637541599,44.58,16.826,16.81,16.11]
[1673637542475,20.0,16.825,16.81,16.11]
[1673637542665,44.6,16.82,16.81,16.11]
[1673637542994,44.58,16.824,16.81,16.11]
[1673637543207,44.6,16.82,16.81,16.11]
[1673637546654,44.6,16.82,16.8,80.63]
[1673637546857,20.0,16.819,16.8,16.19]
[1673637547057,17.0,16.818,16.8,16.19]
[1673637547287,20.0,16.817,16.8,16.19]
[1673637547486,20.0,16.815,16.8,16.19]
[1673637547915,44.61,16.814,16.8,16.19]
[1673637548107,61.61,16.814,16.8,16.19]
[1673637548310,20.0,16.813,16.8,16.19]
[1673637548523,17.0,16.812,16.8,16.19]
[1673637548736,172.7388,16.812,16.8,16.19]
[1673637560206,155.7388,16.812,16.8,16.19]
[1673637560417,44.61,16.814,16.801,17.0]
[1673637560618,44.61,16.816,16.801,61.65]
[1673637560831,112.4777,16.821,16.801,61.65]
[1673637560832,44.6,16.82,16.81,16.11]
[1673637563241,17.0,16.819,16.81,16.11]
[1673637563779,44.6,16.818,16.81,16.11]
[1673637563983,17.0,16.817,16.804,20.0]
[1673637564192,17.0,16.817,16.805,20.0]
[1673637564834,17.0,16.817,16.804,20.0]
[1673637565051,44.6,16.819,16.806,20.0]
[1673637565367,44.6,16.82,16.81,16.11]
[1673637571024,44.6,16.82,16.811,17.0]
[1673637571241,44.6,16.82,16.812,20.0]
[1673637572198,112.4777,16.821,16.812,20.0]
[1673637580928,112.4777,16.821,16.81,80.71]
[1673637581342,44.59,16.82,16.81,80.71]
[1673637581874,112.4777,16.821,16.81,80.71]
[1673637583752,112.4777,16.821,16.81,16.25]
[1673637585955,112.4777,16.821,16.81,60.31]
[1673637588892,37.0,16.82,16.81,60.31]
[1673637589107,112.4777,16.821,16.81,60.31]
[1673637592170,112.4777,16.821,16.81,12.1]
[1673637592375,20.0,16.819,16.81,12.1]
[1673637592592,20.0,16.819,16.807,64.63]
[1673637592593,20.0,16.819,16.807,20.0]
[1673637592790,44.6,16.818,16.808,20.0]
[1673637593007,44.6,16.818,16.804,20.0]
[1673637593324,17.0,16.817,16.804,20.0]
[1673637595859,17.0,16.817,16.804,40.0]
[1673637596571,112.4777,16.821,16.81,12.05]
[1673637597731,112.4777,16.821,16.81,60.37]
[1673637597950,112.4777,16.821,16.811,37.0]
[1673637598904,44.58,16.825,16.811,37.0]
[1673637599089,44.58,16.826,16.812,94.5891928]
[1673637599300,153.5871,16.832,16.82,12.05]
[1673637604281,20.0,16.831,16.82,12.05]
[1673637604909,81.57,16.829,16.814,44.61]
[1673637605114,20.0,16.828,16.811,44.62]
[1673637605302,37.0,16.827,16.81,104.9]
[1673637605518,81.58,16.827,16.81,104.9]
[1673637605738,20.0,16.826,16.81,104.9]
[1673637605953,17.0,16.825,16.81,104.9]
[1673637606276,20.0,16.824,16.81,60.28]
[1673637606488,20.0,16.824,16.81,80.18]
[1673637606683,44.59,16.823,16.81,80.18]
[1673637606889,44.59,16.823,16.81,16.08]
[1673637607309,20.0,16.822,16.81,16.08]
[1673637607956,164.2696,16.821,16.81,16.08]
[1673637608266,164.2696,16.821,16.806,44.63]
[1673637608267,17.0,16.82,16.806,44.63]
[1673637608601,17.0,16.82,16.807,20.0]
[1673637608772,44.6,16.819,16.807,20.0]
[1673637609190,44.6,16.819,16.805,20.0]
[1673637609424,44.6,16.819,16.806,17.0]
[1673637609611,44.6,16.819,16.807,20.0]
[1673637610568,61.6,16.82,16.807,20.0]
[1673637611095,44.6,16.82,16.81,16.07]
[1673637611313,119.6796,16.821,16.81,16.07]
[1673637611529,119.6796,16.821,16.811,17.0]
[1673637612459,119.6796,16.821,16.81,16.07]
[1673637615729,44.6,16.82,16.81,16.07]
[1673637616786,119.6796,16.821,16.811,17.0]
[1673637618658,44.58,16.824,16.812,20.0]
[1673637618859,153.9401,16.825,16.813,17.0]
[1673637619071,153.1918,16.83,16.813,17.0]
[1673637619280,108.6218,16.83,16.82,16.07]
[1673637619489,153.1918,16.83,16.82,16.07]
[1673637620964,109.002,16.831,16.821,17.0]
[1673637621174,109.002,16.831,16.822,20.0]
[1673637621717,109.002,16.831,16.823,17.0]
[1673637624022,109.002,16.831,16.824,20.0]
[1673637624777,44.55,16.838,16.824,20.0]
[1673637624962,20.0,16.837,16.825,17.0]
[1673637625382,44.55,16.836,16.825,17.0]
[1673637625934,44.55,16.836,16.824,91.7091793]
[1673637628033,17.0,16.835,16.824,91.7091793]
[1673637628346,17.0,16.835,16.82,124.98]
[1673637628558,44.56,16.834,16.82,216.6891793]
[1673637629271,44.56,16.834,16.821,17.0]
[1673637629691,44.56,16.834,16.82,216.6891793]
[1673637629928,44.56,16.834,16.82,124.98]
[1673637630239,44.56,16.834,16.82,80.38]
[1673637631502,37.0,16.833,16.82,80.38]
[1673637631690,37.0,16.833,16.82,15.94]
[1673637632422,81.56,16.833,16.82,15.94]
[1673637634335,20.0,16.832,16.813,44.61]
[1673637634521,153.7787,16.831,16.81,15.92]
[1673637634741,198.7,16.83,16.81,15.92]
[1673637634968,17.0,16.829,16.81,15.92]
[1673637635175,20.0,16.828,16.81,15.92]
[1673637635390,20.0,16.826,16.81,15.92]
[1673637635594,17.0,16.825,16.81,15.92]
[1673637635809,61.58,16.825,16.81,15.92]
[1673637639278,20.0,16.824,16.81,15.92]
[1673637639473,17.0,16.823,16.81,15.92]
[1673637639682,171.1242,16.823,16.81,15.92]
[1673637641489,154.1242,16.823,16.811,17.0]
[1673637642436,154.1242,16.823,16.81,15.92]
[1673637642650,17.0,16.822,16.81,15.92]
[1673637643173,44.59,16.821,16.81,15.92]
[1673637645378,161.4046,16.821,16.81,15.92]
[1673637647045,141.4046,16.821,16.81,15.92]
[1673637650314,57.0,16.82,16.801,44.65]
[1673637650509,57.0,16.82,16.8,16.02]
[1673637650708,223.3,16.819,16.8,16.02]
[1673637650933,37.0,16.818,16.8,16.02]
[1673637651374,44.6,16.817,16.8,16.02]
[1673637651587,17.0,16.816,16.8,16.02]
[1673637651793,112.6064,16.815,16.8,16.02]
[1673637652109,157.2164,16.815,16.801,17.0]
[1673637652442,157.2164,16.815,16.802,20.0]
[1673637652758,157.2164,16.815,16.803,17.0]
[1673637653183,157.2164,16.815,16.8,16.02]
[1673637653388,17.0,16.814,16.8,16.02]
[1673637653809,44.61,16.813,16.8,16.02]
[1673637654122,37.0,16.812,16.797,44.66]
[1673637654348,152.8301,16.812,16.798,20.0]
[1673637654657,64.62,16.811,16.798,20.0]
[1673637654866,64.62,16.811,16.797,20.0]
[1673637654867,17.0,16.81,16.797,20.0]
[1673637655083,17.0,16.81,16.795,20.0]
[1673637655271,44.62,16.809,16.794,20.0]
[1673637655596,17.0,16.808,16.794,20.0]
[1673637656000,17.0,16.809,16.794,20.0]
[1673637656546,44.63,16.808,16.794,20.0]
[1673637656871,17.0,16.807,16.794,20.0]
[1673637657258,17.0,16.807,16.794,64.66]
[1673637657492,17.0,16.807,16.788,111.3437]
[1673637657493,61.63,16.807,16.792,44.67]
[1673637657689,114.1,16.806,16.792,44.67]
[1673637657901,17.0,16.805,16.791,44.67]
[1673637658124,17.0,16.805,16.792,17.0]
[1673637658320,44.64,16.804,16.792,17.0]
[1673637658969,17.0,16.803,16.791,44.67]
[1673637659271,129.3931,16.803,16.79,16.13]
[1673637659660,44.64,16.802,16.79,16.13]
[1673637660083,17.0,16.801,16.79,16.13]
[1673637660525,64.64,16.802,16.79,16.13]
[1673637661161,17.0,16.801,16.783,44.69]
[1673637661465,17.0,16.801,16.784,20.0]
[1673637661691,44.65,16.8,16.784,20.0]
[1673637661872,44.65,16.801,16.785,64.69]
[1673637662082,44.64,16.802,16.786,20.0]
[1673637662403,44.64,16.802,16.787,17.0]
[1673637662607,44.64,16.802,16.787,61.68]
[1673637662818,44.64,16.802,16.788,20.0]
[1673637663024,44.64,16.802,16.789,17.0]
[1673637663238,44.64,16.802,16.788,20.0]
[1673637663565,17.0,16.801,16.787,20.0]
[1673637663883,17.0,16.801,16.786,44.69]
[1673637664069,44.65,16.8,16.787,20.0]
[1673637664283,17.0,16.799,16.787,20.0]
[1673637665352,44.65,16.798,16.787,20.0]
[1673637665542,44.65,16.798,16.784,20.0]
[1673637665754,44.65,16.798,16.785,20.0]
[1673637665993,44.65,16.798,16.786,20.0]
[1673637666712,44.65,16.798,16.787,17.0]
[1673637666920,44.65,16.798,16.788,20.0]
[1673637667142,44.64,16.802,16.788,20.0]
[1673637667454,17.0,16.801,16.788,20.0]
[1673637667978,44.65,16.8,16.788,20.0]
[1673637669446,44.65,16.8,16.785,44.69]
[1673637669657,44.65,16.8,16.78,80.37]
[1673637669658,20.0,16.798,16.783,44.69]
[1673637669850,37.0,16.797,16.781,44.7]
[1673637670061,81.66,16.797,16.781,44.7]
[1673637670803,81.66,16.797,16.782,17.0]
[1673637671228,81.66,16.797,16.781,44.7]
[1673637671436,81.66,16.797,16.78,60.72]
[1673637671651,81.66,16.797,16.78,16.02]
[1673637671861,81.66,16.797,16.781,44.7]
[1673637672585,81.66,16.797,16.78,16.02]
[1673637672795,81.66,16.797,16.781,17.0]
[1673637674069,81.66,16.797,16.782,20.0]
[1673637674384,81.66,16.797,16.783,17.0]
[1673637675311,44.66,16.797,16.783,17.0]
[1673637675518,119.8179,16.799,16.79,15.96]
[1673637676165,44.63,16.806,16.791,17.0]
[1673637676382,44.63,16.806,16.791,61.67]
[1673637676695,153.5468,16.807,16.791,61.67]
[1673637676911,44.63,16.805,16.791,61.67]
[1673637677117,64.63,16.806,16.791,61.67]